bitfinex/quotes_ETHUSD_20250517
["timestamp","ask_amount","ask_price","bid_price","bid_amount"]
[1747504929725,4.04481656,2472.3,2472.2,7.607]
[1747504930121,4.04474715,2472.4,2472.2,7.607]
[1747504930351,7.606,2472.6,2472.2,7.607]
[1747504930547,4.86077136,2472.7,2472.2,7.607]
[1747504930548,4.04456191,2472.5,2472.2,7.607]
[1747504931228,4.04456191,2472.5,2472.2,8.85125365]
[1747504932065,4.04465296,2472.4,2472.3,0.38573419]
[1747504933437,4.04436064,2472.6,2472.3,0.38573419]
[1747504933762,4.04418072,2472.7,2472.3,0.38573419]
[1747504934067,8.0,2472.9,2472.0,0.48179621]
[1747504934241,4.0451438,2472.1,2472.0,0.48179621]
[1747504934432,4.0451438,2472.1,2472.0,8.08879621]
[1747504934629,4.0451438,2472.1,2472.0,0.48179621]
[1747504934849,4.0451438,2472.1,2472.0,8.08879621]
[1747504935880,4.0451438,2472.1,2472.0,8.47460473]
[1747504936038,0.7774,2472.4,2472.0,8.47460473]
[1747504936234,4.04490555,2472.3,2472.0,9.79085193]
[1747504936669,4.04498317,2472.2,2472.0,9.79085193]
[1747504937372,4.04498317,2472.2,2472.1,0.38580852]
[1747504939579,4.04498317,2472.2,2472.0,7.607]
[1747504940049,4.04477559,2472.4,2472.0,7.607]
[1747504940373,4.04477559,2472.4,2472.1,1.16523509]
[1747504940573,4.04483685,2472.3,2472.0,7.607]
[1747504940778,4.04506911,2472.2,2472.0,7.607]
[1747504942085,4.04506911,2472.2,2472.1,0.38543748]
[1747504942261,4.04506911,2472.2,2472.1,7.99243748]
[1747504943454,4.04506911,2472.2,2472.1,7.607]
[1747504943656,4.04536075,2472.0,2471.7,0.8052]
[1747504943855,4.04536075,2472.0,2471.8,7.607]
[1747504944485,4.04536075,2472.0,2471.9,0.38552427]
[1747504944784,4.04536075,2472.0,2471.9,7.99252427]
[1747504945185,4.04502359,2472.2,2471.9,7.99252427]
[1747504945385,0.7869,2472.5,2472.0,4.04519893]
[1747504945573,4.04465942,2472.4,2472.1,2.01497232]
[1747504945780,4.04454203,2472.5,2472.1,2.01497232]
[1747504946276,4.04454203,2472.5,2472.1,6.06010785]
[1747504946610,4.83050584,2473.1,2472.3,0.8112]
[1747504946749,4.04364139,2473.1,2472.6,4.04420112]
[1747504946950,9.97666936,2473.3,2472.9,0.8112]
[1747504947158,8.3919,2473.6,2473.0,7.607]
[1747504947576,4.04319497,2473.3,2473.1,0.38552427]
[1747504947860,4.04311012,2473.4,2473.1,0.38552427]
[1747504948394,4.04304447,2473.4,2473.1,0.38552427]
[1747504948594,4.04288547,2473.5,2473.1,0.38552427]
[1747504948760,4.04288547,2473.5,2473.2,0.8182]
[1747504949994,4.04318117,2473.3,2473.2,0.8182]
[1747504950157,4.04308287,2473.4,2473.2,0.8182]
[1747504953156,5.93341241,2473.7,2473.2,4.86143168]
[1747504953392,9.97598436,2473.7,2473.3,1.01896735]
[1747504953699,0.7761,2474.0,2473.3,4.5931356]
[1747504953864,4.04239135,2473.8,2473.3,4.59307089]
[1747504954059,1.84381172,2474.5,2473.9,0.8182]
[1747504954395,4.04187381,2474.1,2473.9,0.8182]
[1747504954580,4.81766037,2474.3,2473.9,7.604]
[1747504954784,4.04203718,2474.0,2473.9,7.604]
[1747504956803,0.7761,2474.3,2473.9,7.604]
[1747504956804,4.04198317,2474.1,2473.9,7.604]
[1747504956957,4.04198317,2474.1,2473.9,8.4222]
[1747504957382,4.04203718,2474.0,2473.9,8.4222]
[1747504957776,4.04194674,2474.1,2473.9,8.4222]
[1747504958596,4.04162171,2474.3,2473.9,9.26442]
[1747504959408,4.04172078,2474.2,2473.9,9.26442]
[1747504959772,1.84381172,2474.5,2473.9,1.66042]
[1747504959974,4.04203718,2474.0,2473.9,0.8182]
[1747504960169,4.04210854,2474.0,2473.9,7.602]
[1747504960990,4.04194167,2474.1,2473.9,7.602]
[1747504961375,4.04194167,2474.1,2473.7,0.8182]
[1747504961617,4.04169365,2474.3,2473.9,0.8182]
[1747504961915,4.04200166,2474.1,2473.9,0.8182]
[1747504962105,4.04200166,2474.1,2474.0,7.601]
[1747504962925,4.81766667,2474.3,2473.7,0.8182]
[1747504963213,4.04216812,2474.0,2473.8,7.601]
[1747504963398,4.04228285,2473.9,2473.8,7.601]
[1747504964276,4.04195904,2474.1,2473.8,8.20423605]
[1747504965378,10.66571172,2474.5,2473.9,0.8159]
[1747504965589,4.04178487,2474.2,2473.9,0.8159]
[1747504966010,4.04145019,2474.4,2473.9,0.8159]
[1747504966202,4.04172421,2474.2,2473.9,0.8159]
[1747504966487,4.04167113,2474.3,2474.0,1.30624339]
[1747504966812,1.84381172,2474.5,2474.1,0.8159]
[1747504967019,1.84381172,2474.5,2474.2,4.04160486]
[1747504967192,1.84381172,2474.5,2474.3,8.4169]
[1747504968191,4.04138376,2474.4,2474.3,0.8159]
[1747504968395,4.04138376,2474.4,2474.3,7.6]
[1747504969611,5.88506421,2474.5,2474.1,0.55]
[1747504969612,4.04157901,2474.3,2474.1,0.55]
[1747504969808,4.04157901,2474.3,2474.2,7.6]
[1747504970130,1.84381172,2474.5,2474.2,7.6]
[1747504970330,1.84381172,2474.5,2474.2,9.25649]
[1747504970495,4.04138478,2474.4,2474.2,9.25649]
[1747504971932,4.0415471,2474.3,2474.2,9.25649]
[1747504972126,4.04147037,2474.4,2474.2,9.25649]
[1747504972821,4.04147037,2474.4,2474.2,1.65649]
[1747504973029,4.04162398,2474.3,2474.1,0.55]
[1747504973200,4.04162398,2474.3,2474.2,7.6]
[1747504973921,4.04162398,2474.3,2474.1,0.55]
[1747504974110,4.04162398,2474.3,2474.2,7.6]
[1747504975329,4.04148456,2474.4,2474.2,7.6]
[1747504975534,4.04148456,2474.4,2474.2,9.25649]
[1747504975912,4.04148456,2474.4,2474.2,1.65649]
[1747504976108,1.84381172,2474.5,2474.3,7.599]
[1747504976314,4.04144388,2474.4,2474.3,7.599]
[1747504977801,4.04160987,2474.3,2474.0,0.8159]
[1747504978015,4.04160987,2474.3,2474.1,7.599]
[1747504978630,4.04160987,2474.3,2474.0,0.8159]
[1747504978839,4.04160987,2474.3,2474.2,7.599]
[1747504979001,1.95955281,2474.3,2474.2,7.599]
[1747504979205,6.81289991,2474.3,2474.2,7.599]
[1747504979443,4.8533471,2474.3,2474.2,7.599]
[1747504980645,4.04220057,2473.9,2473.8,0.48179621]
[1747504980817,4.04220057,2473.9,2473.8,8.08079621]
[1747504981002,4.04220057,2473.9,2473.8,9.03344476]
[1747504981556,4.04220057,2473.9,2473.8,8.55164855]
[1747504982032,4.04206715,2474.0,2473.8,8.55164855]
[1747504982536,4.04206715,2474.0,2473.9,0.38425007]
[1747504984035,4.04197505,2474.1,2473.9,0.38425007]
[1747504984542,4.04203718,2474.0,2473.9,0.38425007]
[1747504986428,4.61516453,2474.5,2473.9,0.38425007]
[1747504986635,4.04169508,2474.3,2474.0,0.7749]
[1747504986933,5.88508995,2474.5,2474.0,0.7749]
[1747504987103,4.04155457,2474.3,2474.0,0.7749]
[1747504987301,1.84381172,2474.5,2474.0,0.7749]
[1747504987507,5.8851693,2474.5,2474.1,0.58952406]
[1747504987807,4.04139898,2474.4,2474.1,0.58952406]
[1747504988205,5.88512962,2474.5,2474.1,4.63138923]
[1747504988406,5.88512962,2474.5,2474.2,0.7749]
[1747504988613,5.88512962,2474.5,2474.3,7.598]
[1747504988813,5.88512962,2474.5,2474.3,9.28267899]
[1747504990355,4.04138376,2474.4,2474.3,9.28267899]
[1747504990550,4.04138376,2474.4,2474.3,1.68467899]
[1747504990721,1.84381172,2474.5,2474.4,0.8313]
[1747504991114,4.04138376,2474.4,2474.3,7.98225007]
[1747504991309,5.88512411,2474.5,2474.3,0.38425007]
[1747504991515,5.88512411,2474.5,2474.4,7.598]
[1747504991716,5.88512411,2474.5,2474.3,0.38425007]
[1747504991938,5.88512411,2474.5,2474.4,7.597]
[1747504992139,5.88512411,2474.5,2474.4,7.98125007]
[1747504992648,5.88512411,2474.5,2474.4,0.38425007]
[1747504992844,5.88512411,2474.5,2474.4,7.98125007]
[1747504994447,1.84381172,2474.5,2474.4,7.98125007]
[1747504994652,1.84381172,2474.5,2474.4,8.9106847]
[1747504997314,1.84381172,2474.5,2474.4,9.4606847]
[1747504997565,1.84381172,2474.5,2474.4,14.28866846]
[1747505000719,1.84381172,2474.5,2474.4,2.6502847]
[1747505000949,1.84381172,2474.5,2474.4,17.8422847]
[1747505001143,1.84381172,2474.5,2474.4,21.88366846]
[1747505001864,1.84381172,2474.5,2474.4,6.69166846]
[1747505002024,1.84381172,2474.5,2474.4,21.88366846]
[1747505004276,1.84381172,2474.5,2474.4,22.36216351]
[1747505005975,1.84381172,2474.5,2474.4,22.36116351]
[1747505006676,1.84381172,2474.5,2474.4,3.12877975]
[1747505006890,5.88503216,2474.5,2474.4,8.45874512]
[1747505007074,5.88503216,2474.5,2474.4,7.98025007]
[1747505007468,5.88503216,2474.5,2474.4,0.38425007]
[1747505007777,5.88503216,2474.5,2474.4,7.98025007]
[1747505009958,5.88503216,2474.5,2474.4,7.596]
[1747505010492,4.04138376,2474.4,2474.3,17.452]
[1747505010695,4.04138376,2474.4,2474.3,25.048]
[1747505011496,4.04138376,2474.4,2474.3,25.43126044]
[1747505011672,5.88512172,2474.5,2474.3,25.43126044]
[1747505011860,1.84381172,2474.5,2474.3,25.43126044]
[1747505012187,4.04089406,2474.7,2474.3,28.39908099]
[1747505012686,4.04082539,2474.8,2474.4,0.7956]
[1747505012851,12.46615217,2475.0,2474.4,0.7956]
[1747505012852,8.4257,2475.0,2474.4,0.7956]
[1747505013055,4.0407416,2474.8,2474.4,0.7956]
[1747505013301,4.0407416,2474.8,2474.5,2.9194681]
[1747505013799,4.04090357,2474.7,2474.5,2.9194681]
[1747505014360,4.04090357,2474.7,2474.6,0.38326044]
[1747505014961,0.8307,2475.0,2474.6,0.38326044]
[1747505015158,4.04079934,2474.8,2474.6,0.38326044]
[1747505015373,4.04079934,2474.8,2474.6,1.19722426]
[1747505016393,4.04064979,2474.9,2474.7,0.38326044]
[1747505016569,4.04054574,2475.0,2474.8,7.595]
[1747505016570,4.04049358,2475.0,2474.8,7.595]
[1747505016773,4.84719582,2475.1,2474.8,7.595]
[1747505016956,4.04008304,2475.2,2474.8,7.595]
[1747505017159,4.04040703,2475.0,2474.8,8.87831667]
[1747505017395,4.04056729,2474.9,2474.8,8.87831667]
[1747505019088,4.04056729,2474.9,2474.8,9.26209162]
[1747505019703,6.80638331,2475.3,2474.8,9.26209162]
[1747505019704,4.04025811,2475.1,2474.8,9.26209162]
[1747505019876,4.04056729,2474.9,2474.8,9.26209162]
[1747505020274,4.040428,2475.0,2474.8,9.26209162]
[1747505020597,4.040428,2475.0,2474.9,0.92620916]
[1747505020781,4.040428,2475.0,2474.8,7.97877495]
[1747505020986,4.04056729,2474.9,2474.8,7.97877495]
[1747505021196,4.04056729,2474.9,2474.8,0.38377495]
[1747505021378,4.04056729,2474.9,2474.8,7.97877495]
[1747505028106,4.04052702,2475.0,2474.8,7.97877495]
[1747505028404,6.80637651,2475.3,2474.8,7.97877495]
[1747505028608,4.04051556,2475.0,2474.8,7.97877495]
[1747505028807,4.04056729,2474.9,2474.8,7.97877495]
[1747505029203,4.04040888,2475.0,2474.8,8.77665245]
[1747505029508,4.04056729,2474.9,2474.8,7.97877495]
[1747505029706,4.04031807,2475.1,2474.8,7.97877495]
[1747505031910,4.04031807,2475.1,2474.9,0.38377495]
[1747505032308,4.04024599,2475.1,2474.9,0.38377495]
[1747505032507,4.04024599,2475.1,2474.9,1.25697245]
[1747505032809,4.04024599,2475.1,2475.0,0.38377495]
[1747505034108,4.04040404,2475.0,2474.9,0.38377495]
[1747505034487,4.04040404,2475.0,2474.9,7.97877495]
[1747505035815,6.80647328,2475.3,2474.9,7.97877495]
[1747505035816,0.8069,2475.3,2474.9,7.97877495]
[1747505035997,4.04040404,2475.0,2474.9,7.97877495]
[1747505036178,4.04040404,2475.0,2474.9,8.85966245]
[1747505037111,4.04033017,2475.1,2474.9,8.85966245]
[1747505037309,4.04040404,2475.0,2474.9,8.85966245]
[1747505037514,4.04040404,2475.0,2474.9,7.97877495]
[1747505038012,4.04040404,2475.0,2474.9,7.595]
[1747505039112,4.04088533,2474.8,2474.6,0.47849505]
[1747505039299,4.04088533,2474.8,2474.7,7.595]
[1747505039705,4.04088533,2474.8,2474.7,7.979073]
[1747505040918,4.04088533,2474.8,2474.7,0.384073]
[1747505042922,4.04105714,2474.6,2474.5,7.595]
[1747505043117,4.80565714,2474.6,2474.5,7.595]
[1747505044624,4.80565714,2474.6,2474.5,7.97966459]
[1747505047616,4.80565714,2474.6,2474.5,7.97766459]
[1747505048903,4.04138376,2474.4,2474.3,17.452]
[1747505049103,4.04138376,2474.4,2474.3,25.045]
[1747505049413,4.04138376,2474.4,2474.3,25.046]
[1747505049932,4.04124835,2474.5,2474.3,26.33056963]
[1747505050335,0.7548,2474.8,2474.4,7.594]
[1747505050636,12.04062828,2474.9,2474.4,8.79980694]
[1747505050827,4.04089919,2474.7,2474.4,8.79980694]
[1747505051027,4.0410704,2474.6,2474.4,8.79980694]
[1747505051230,4.04122044,2474.5,2474.4,3.54190624]
[1747505051528,4.04122044,2474.5,2474.4,7.97810694]
[1747505052436,4.04122044,2474.5,2474.4,0.38410694]
[1747505052636,4.04122044,2474.5,2474.4,7.97810694]
[1747505053436,4.04122044,2474.5,2474.4,7.594]
[1747505053636,4.04122044,2474.5,2474.3,17.452]
[1747505053637,4.79618376,2474.4,2474.3,17.452]
[1747505053941,4.0415471,2474.3,2474.2,7.594]
[1747505054135,4.04203718,2474.0,2473.9,0.47849505]
[1747505054339,4.04203718,2474.0,2473.9,8.07249505]
[1747505054705,4.04203718,2474.0,2473.9,8.45660322]
[1747505055951,4.04203718,2474.0,2473.9,7.97810817]
[1747505056841,4.04203718,2474.0,2473.9,0.38410817]
[1747505057051,4.04203718,2474.0,2473.9,7.97810817]
[1747505057666,4.04203718,2474.0,2473.9,0.38410817]
[1747505057667,22.34938999,2474.0,2473.9,0.38410817]
[1747505057954,4.04269081,2473.6,2473.5,0.47849505]
[1747505058106,6.75704362,2473.6,2473.5,0.47849505]
[1747505058433,14.75704362,2473.6,2473.5,0.47849505]
[1747505058961,20.69045603,2473.6,2473.5,0.47849505]
[1747505059509,4.0430177,2473.4,2473.3,0.6422893]
[1747505059739,4.0430177,2473.4,2472.6,1.27352256]
[1747505059740,4.79896225,2472.7,2472.6,1.27352256]
[1747505060035,4.0445536,2472.5,2472.2,7.595]
[1747505060634,4.04438301,2472.6,2472.2,7.595]
[1747505060846,4.04438301,2472.6,2472.2,8.88918705]
[1747505061521,4.04454138,2472.5,2472.2,8.88918705]
[1747505061919,5.93341241,2473.1,2472.4,4.59463549]
[1747505062119,4.04326658,2473.3,2472.8,4.04396321]
[1747505062332,4.04326658,2473.3,2472.8,7.596]
[1747505062508,4.04339589,2473.2,2472.8,8.05539632]
[1747505062711,4.04362962,2473.1,2472.8,8.05539632]
[1747505064143,4.04367886,2473.0,2472.8,8.05539632]
[1747505064348,4.04367886,2473.0,2472.8,7.597]
[1747505064349,4.04383517,2472.9,2472.8,7.597]
[1747505065073,4.04366116,2473.1,2472.8,7.597]
[1747505065264,4.04377639,2473.0,2472.8,7.597]
[1747505065556,4.04383517,2472.9,2472.8,7.597]
[1747505068675,4.04375962,2473.0,2472.8,7.597]
[1747505069230,4.04383517,2472.9,2472.8,7.597]
[1747505069539,4.04383517,2472.9,2472.5,0.8217]
[1747505069739,4.04416225,2472.7,2472.6,7.598]
[1747505071441,1.95955281,2472.9,2472.3,0.7527]
[1747505071642,4.0439987,2472.8,2472.5,7.598]
[1747505072175,4.04409384,2472.8,2472.5,7.598]
[1747505073733,4.04418307,2472.7,2472.5,7.598]
[1747505074179,4.04409384,2472.8,2472.5,8.83754576]
[1747505074180,4.04407197,2472.8,2472.5,8.83754576]
[1747505075197,4.04428663,2472.7,2472.6,7.597]
[1747505075478,4.04391866,2472.9,2472.6,7.597]
[1747505075983,4.04402924,2472.8,2472.6,7.597]
[1747505076499,4.04416225,2472.7,2472.6,7.597]
[1747505078482,4.04465296,2472.4,2472.3,0.7527]
[1747505078689,4.0439987,2472.8,2472.3,0.7527]
[1747505078690,1.95955281,2472.7,2472.3,7.597]
[1747505078876,4.0445639,2472.5,2472.3,7.597]
[1747505079274,4.04465296,2472.4,2472.3,7.597]
[1747505082405,4.0448713,2472.3,2472.0,0.7588]
[1747505082584,4.04465296,2472.4,2472.3,7.598]
[1747505083696,4.0451154,2472.2,2472.1,7.598]
[1747505084895,4.0451154,2472.2,2472.1,7.98260646]
[1747505087205,4.04472352,2472.4,2472.1,7.98260646]
[1747505087412,4.04460139,2472.5,2472.1,7.98260646]
[1747505087572,4.04466328,2472.4,2472.1,7.98260646]
[1747505088708,0.7927,2472.7,2472.2,0.8225]
[1747505089013,4.04432947,2472.6,2472.2,4.8673803]
[1747505089174,4.04422924,2472.7,2472.3,4.04480561]
[1747505089376,4.04422924,2472.7,2472.2,5.25201531]
[1747505089704,4.04422924,2472.7,2472.2,5.29242442]
[1747505090019,7.598,2472.8,2472.2,3.1954668]
[1747505090211,7.598,2472.8,2472.3,0.38460646]
[1747505090212,6.00429287,2472.4,2472.3,0.38460646]
[1747505091502,4.04465296,2472.4,2472.3,0.38460646]
[1747505092099,4.04465296,2472.4,2472.2,1.20710646]
[1747505093712,4.04481656,2472.3,2472.2,0.38460646]
[1747505094299,4.04473088,2472.4,2472.2,0.38460646]
[1747505094494,7.598,2472.7,2472.2,0.38460646]
[1747505094699,4.04465648,2472.4,2472.2,0.38460646]
[1747505096914,4.04465648,2472.4,2472.3,0.38460646]
[1747505098889,4.04465648,2472.4,2472.2,0.38460646]
[1747505098890,4.04481656,2472.3,2472.2,0.38460646]
[1747505100311,12.82661656,2472.3,2472.2,0.38460646]
[1747505100511,4.04563476,2471.8,2471.7,0.64261153]
[1747505100830,14.38398757,2471.8,2471.7,0.64261153]
[1747505101381,12.42443476,2471.8,2471.7,0.64261153]
[1747505101785,14.38398757,2471.8,2471.7,0.64261153]
[1747505102018,22.38398757,2471.8,2471.7,0.64261153]
[1747505102185,22.38398757,2471.8,2471.1,1.27352256]
[1747505102186,4.04612583,2471.5,2471.4,0.38609527]
[1747505103815,0.786,2472.2,2471.5,0.8218]
[1747505104017,2.74555281,2472.6,2471.8,0.55]
[1747505104281,2.74555281,2472.6,2472.2,0.8218]
[1747505104282,4.04442795,2472.6,2472.2,0.8218]
[1747505104488,4.04472404,2472.4,2472.0,0.8218]
[1747505104896,4.04499209,2472.2,2472.0,0.8218]
[1747505105135,4.04499209,2472.2,2472.1,0.38609527]
[1747505105346,4.04448938,2472.5,2472.1,0.38609527]
[1747505106413,4.04448938,2472.5,2472.0,4.86703352]
[1747505106414,4.04448938,2472.5,2472.2,0.38609527]
[1747505106733,4.04467755,2472.4,2472.2,0.38609527]
[1747505107036,4.04461566,2472.5,2472.2,0.38609527]
[1747505107237,20.32098281,2472.8,2472.3,4.04470729]
[1747505107238,10.76356384,2472.8,2472.3,4.04470729]
[1747505107535,10.51481994,2473.2,2472.5,0.8218]
[1747505107723,14.55822589,2473.2,2472.7,4.04412957]
[1747505108100,10.51481994,2473.2,2472.6,0.55]
[1747505108306,10.51481994,2473.2,2472.8,4.43008094]
[1747505108537,8.384,2473.4,2472.9,8.3811]
[1747505108704,4.04318117,2473.3,2472.9,8.3811]
[1747505108906,4.04307523,2473.4,2472.9,8.3811]
[1747505109226,4.04325728,2473.3,2472.9,8.3811]
[1747505109916,11.64097932,2473.5,2473.0,4.04360106]
[1747505110111,4.0430199,2473.4,2472.9,12.42485739]
[1747505110337,4.0430199,2473.4,2472.9,14.07174188]
[1747505110642,4.04299446,2473.5,2472.9,14.07171406]
[1747505110838,4.04269081,2473.6,2472.9,10.02798449]
[1747505111039,4.04359432,2473.1,2472.8,7.597]
[1747505111239,4.04370071,2473.0,2472.3,0.7831]
[1747505111417,4.04439807,2472.6,2472.4,7.597]
[1747505111837,4.04367165,2473.0,2472.4,7.597]
[1747505112043,4.04408742,2472.8,2472.4,7.597]
[1747505112440,4.04408742,2472.8,2472.5,7.98142787]
[1747505112656,4.04384926,2472.9,2472.5,7.98142787]
[1747505112816,4.04384207,2472.9,2472.5,7.98142787]
[1747505113012,4.04428665,2472.7,2472.5,7.98142787]
[1747505113737,4.04428665,2472.7,2472.5,7.597]
[1747505113934,4.04432581,2472.6,2472.3,0.7831]
[1747505114252,4.04432581,2472.6,2472.4,7.597]
[1747505114446,4.04363778,2473.1,2472.5,0.55]
[1747505114650,0.8108,2473.5,2472.8,0.55]
[1747505114814,4.04325449,2473.3,2472.9,7.98114574]
[1747505115020,4.04313835,2473.4,2472.9,12.024966]
[1747505115743,4.04325084,2473.3,2472.9,7.98114574]
[1747505115914,0.8108,2473.5,2472.9,7.98114574]
[1747505116119,4.04322252,2473.3,2472.9,7.98114574]
[1747505116353,4.04322252,2473.3,2472.9,9.72427379]
[1747505116537,4.04322252,2473.3,2472.9,9.34012805]
[1747505117132,4.0431637,2473.4,2472.9,9.34012805]
[1747505117331,4.04325014,2473.3,2472.9,9.34012805]
[1747505117556,4.04316518,2473.4,2472.9,13.3839284]
[1747505117751,4.04313575,2473.4,2472.9,13.3839284]
[1747505117956,4.04321153,2473.3,2472.9,9.34012805]
[1747505118118,4.04313575,2473.4,2472.9,13.38390398]
[1747505118324,0.8108,2473.5,2472.9,9.34012805]
[1747505118650,4.04295945,2473.5,2473.0,4.04363649]
[1747505118825,4.04297679,2473.5,2473.0,4.04365383]
[1747505119024,4.04304276,2473.4,2472.9,13.38386792]
[1747505119430,4.0432275,2473.3,2472.9,13.38386792]
[1747505119637,4.0432275,2473.3,2472.9,9.34012805]
[1747505119839,4.04345291,2473.2,2472.9,9.34012805]
[1747505120036,4.0439987,2472.8,2472.7,0.8121]
[1747505120361,4.0439987,2472.8,2472.7,8.4081]
[1747505120556,4.04393097,2472.9,2472.7,8.4081]
[1747505122459,0.7763,2473.4,2472.7,8.4081]
[1747505122678,4.04352966,2473.1,2472.7,12.45211624]
[1747505122830,4.04352966,2473.1,2472.7,9.65331162]
[1747505123183,4.04367845,2473.0,2472.7,9.65331162]
[1747505123679,4.04367845,2473.0,2472.7,8.4081]
[1747505124183,4.04432581,2472.6,2472.5,7.596]
[1747505124648,4.04418231,2472.7,2472.5,7.596]
[1747505124852,4.0442798,2472.7,2472.5,7.596]
[1747505125254,4.0442798,2472.7,2472.3,0.55]
[1747505125453,4.0442798,2472.7,2472.5,7.596]
[1747505126858,0.8185,2473.2,2472.6,0.8128]
[1747505127061,4.04381575,2473.0,2472.6,0.8128]
[1747505128070,4.0438675,2472.9,2472.6,0.8128]
[1747505128265,4.04432581,2472.6,2472.5,8.146]
[1747505128649,4.04432581,2472.6,2472.4,0.8128]
[1747505128844,4.04432581,2472.6,2472.5,7.596]
[1747505131745,4.04432581,2472.6,2472.1,4.81862351]
[1747505131947,4.04481656,2472.3,2472.2,7.596]
[1747505132741,4.04468771,2472.4,2471.9,17.94766842]
[1747505132742,4.04530744,2472.0,2471.9,17.94766842]
[1747505132942,4.04530744,2472.0,2471.9,25.064]
[1747505133441,4.84323476,2471.8,2471.7,0.47966842]
[1747505133659,16.61061589,2471.8,2471.7,0.47966842]
[1747505135501,4.04671794,2471.2,2471.0,7.624]
[1747505136002,7.624,2471.4,2471.0,7.624]
[1747505136502,7.627,2471.7,2471.1,0.55]
[1747505136699,9.70079354,2472.1,2471.4,4.04628955]
[1747505136700,10.77629,2472.1,2471.4,4.04628955]
[1747505137002,4.04530744,2472.0,2471.5,11.67210381]
[1747505137199,9.97869,2472.1,2471.6,4.04588364]
[1747505137699,4.04530744,2472.0,2471.3,4.59632419]
[1747505137905,5.93341241,2472.6,2471.7,1.3235]
[1747505138110,5.93341241,2472.6,2472.0,4.04521415]
[1747505138282,4.04443985,2472.6,2472.1,11.67106449]
[1747505138779,4.04411441,2472.8,2472.1,11.67106449]
[1747505138971,12.04424093,2472.7,2472.2,4.0449647]
[1747505139174,4.04433191,2472.6,2472.1,11.6710557]
[1747505139492,12.04424447,2472.7,2472.2,4.04496825]
[1747505139799,7.657,2472.9,2472.3,0.764]
[1747505140001,4.04465296,2472.4,2472.3,0.764]
[1747505140297,4.0447181,2472.4,2472.3,7.626]
[1747505141597,4.04457456,2472.5,2472.3,7.626]
[1747505141801,4.04407048,2472.8,2472.3,11.67072246]
[1747505141970,4.04407048,2472.8,2472.4,0.764]
[1747505142170,4.04419844,2472.7,2472.4,0.764]
[1747505142400,4.04408032,2472.8,2472.4,0.764]
[1747505142786,7.663,2473.0,2472.4,2.00748158]
[1747505143001,7.663,2473.0,2472.6,4.04424896]
[1747505143210,4.04351301,2473.1,2472.6,4.04424896]
[1747505143503,5.93341241,2473.4,2473.2,4.04332536]
[1747505143667,11.71438464,2473.8,2473.2,4.04332536]
[1747505143668,4.04240746,2473.8,2473.3,7.625]
[1747505143868,4.04240746,2473.8,2473.3,11.66809811]
[1747505144068,8.0,2474.2,2473.4,1.314]
[1747505144306,4.04203843,2474.0,2473.5,4.04277464]
[1747505144471,4.04196506,2474.1,2473.5,5.78567808]
[1747505144668,4.04228728,2473.9,2473.5,1.70247921]
[1747505144877,4.04199501,2474.1,2473.6,4.04261792]
[1747505145177,4.04211962,2474.0,2473.5,1.70247921]
[1747505145372,4.04194047,2474.1,2473.6,0.55]
[1747505145604,9.97506041,2474.3,2473.7,0.22524792]
[1747505145806,9.97502502,2474.3,2473.8,11.66634763]
[1747505146008,9.97502502,2474.3,2473.8,7.624]
[1747505146176,4.04172228,2474.2,2473.8,7.624]
[1747505147305,7.686,2474.4,2473.6,0.55]
[1747505147603,4.04186796,2474.2,2473.7,7.624]
[1747505148009,4.04190749,2474.1,2473.7,7.624]
[1747505148705,4.04179512,2474.2,2473.7,11.66652463]
[1747505148893,4.04166453,2474.3,2473.8,4.0827804]
[1747505149099,4.04171585,2474.2,2473.8,0.55]
[1747505150108,4.04213877,2474.0,2473.8,0.55]
[1747505150520,7.686,2474.4,2473.8,0.55]
[1747505150736,4.04206474,2474.0,2473.8,0.55]
[1747505151032,7.686,2474.4,2473.4,0.764]
[1747505151033,8.0,2474.3,2473.4,0.764]
[1747505151231,4.04279854,2473.6,2473.5,7.622]
[1747505152503,4.04295213,2473.5,2473.3,17.464]
[1747505152703,4.04295213,2473.5,2473.3,25.086]
[1747505153934,4.0430177,2473.4,2473.3,7.622]
[1747505154308,4.04294507,2473.5,2473.3,7.622]
[1747505154509,4.0430177,2473.4,2473.3,7.622]
[1747505154907,13.93341241,2473.8,2473.3,7.622]
[1747505155106,4.04272557,2473.6,2473.3,7.622]
[1747505155802,4.04277531,2473.6,2473.4,7.622]
[1747505156138,4.04285425,2473.5,2473.4,7.622]
[1747505157200,4.04277997,2473.6,2473.4,7.622]
[1747505159239,5.93341241,2473.8,2473.4,7.622]
[1747505159450,7.673,2474.3,2473.6,0.55]
[1747505159763,4.04162409,2474.3,2473.9,0.812]
[1747505159957,4.04132828,2474.5,2474.0,12.21397371]
[1747505160258,4.04151768,2474.4,2474.0,8.172]
[1747505160454,4.04151768,2474.4,2474.0,12.21401489]
[1747505160758,4.04151768,2474.4,2474.0,8.172]
[1747505161055,4.04126674,2474.5,2474.0,12.21394598]
[1747505161254,4.04097816,2474.7,2474.0,8.172]
[1747505161454,4.04097816,2474.7,2474.0,9.87880589]
[1747505161656,4.04115379,2474.6,2474.1,4.04179082]
[1747505162024,4.04143969,2474.4,2474.0,9.87880589]
[1747505162226,4.04114896,2474.6,2474.0,13.92075925]
[1747505162453,4.04114896,2474.6,2474.1,5.04264618]
[1747505163061,7.677,2474.8,2474.2,0.55]
[1747505163246,4.04048055,2475.0,2474.5,4.04112261]
[1747505163428,7.679,2475.1,2474.6,7.621]
[1747505163625,0.7618,2475.3,2474.6,7.621]
[1747505163626,4.04007756,2475.2,2474.6,7.621]
[1747505163838,4.04080792,2474.8,2474.6,7.621]
[1747505164563,4.04065604,2474.9,2474.6,7.621]
[1747505164975,4.04122044,2474.5,2474.4,0.812]
[1747505165143,4.04122044,2474.5,2474.4,7.678]
[1747505165322,4.04058124,2474.9,2474.3,0.55]
[1747505165323,4.04088701,2474.8,2474.3,0.55]
[1747505165529,4.04056729,2474.9,2474.4,11.71932849]
[1747505165725,11.72008971,2475.2,2474.6,4.85863999]
[1747505166358,4.04040404,2475.0,2474.6,0.8176]
[1747505166659,4.04061405,2474.9,2474.6,0.8176]
[1747505167536,4.04082994,2474.8,2474.7,7.677]
[1747505167736,11.72014073,2475.2,2474.4,18.2726]
[1747505167961,11.72014073,2475.2,2474.5,7.677]
[1747505168136,4.04085089,2474.8,2474.5,7.677]
[1747505168348,4.04062511,2474.9,2474.5,7.677]
[1747505168568,12.04015349,2475.2,2474.7,4.04082482]